[Event "Polofinale MCR junioru 2023"]
[Site "Czech Republic"]
[Date "2023.11.14"]
[Round "4.2"]
[White "Seidl, Jan"]
[Black "Hak, David"]
[Result "1/2-1/2"]
[TimeControl "90 min per 40 moves + 15 min + 30 sec / move from move 1"]
[WhiteFideId "23714522"]
[BlackFideId "377007"]
[WhiteElo "2224"]
[BlackElo "2253"]

1. e4 {[%clk 01:30:57]} {[%emt 00:00:02]} c5 {[%clk 01:23:00]} {[%emt
00:08:02]} 2. Nf3 {[%clk 01:31:21]} {[%emt 00:00:05]} Nc6 {[%clk 01:23:16]}
{[%emt 00:00:15]} 3. Bc4 {[%clk 01:29:50]} {[%emt 00:02:00]} e6 {[%clk
01:22:24]} {[%emt 00:01:22]} 4. O-O {[%clk 01:29:54]} {[%emt 00:00:27]} a6
{[%clk 01:21:46]} {[%emt 00:01:08]} 5. Re1 {[%clk 01:29:28]} {[%emt 00:00:55]}
Nf6 {[%clk 01:18:52]} {[%emt 00:03:23]} 6. c3 {[%clk 01:27:47]} {[%emt
00:02:12]} Be7 {[%clk 01:14:38]} {[%emt 00:04:45]} 7. e5 {[%clk 01:24:06]}
{[%emt 00:04:10]} Nd5 {[%clk 01:14:52]} {[%emt 00:00:16]} 8. d4 {[%clk
01:24:09]} {[%emt 00:00:26]} cxd4 {[%clk 01:07:46]} {[%emt 00:07:37]} 9. cxd4
{[%clk 01:24:20]} {[%emt 00:00:19]} d6 {[%clk 01:07:18]} {[%emt 00:00:58]} 10.
exd6 {[%clk 01:20:08]} {[%emt 00:04:42]} Qxd6 {[%clk 01:07:34]} {[%emt
00:00:14]} 11. Nc3 {[%clk 01:17:04]} {[%emt 00:03:34]} O-O {[%clk 01:00:54]}
{[%emt 00:07:09]} 12. Ne4 {[%clk 01:05:50]} {[%emt 00:11:44]} Qb4 {[%clk
00:59:49]} {[%emt 00:01:35]} 13. Bb3 {[%clk 01:02:12]} {[%emt 00:04:08]} Rd8
{[%clk 00:55:29]} {[%emt 00:04:51]} 14. Be3 {[%clk 00:43:43]} {[%emt 00:18:59]}
h6 {[%clk 00:39:24]} {[%emt 00:16:35]} 15. Rc1 {[%clk 00:36:36]} {[%emt
00:07:37]} Na5 {[%clk 00:29:37]} {[%emt 00:10:16]} 16. Bd2 {[%clk 00:30:45]}
{[%emt 00:06:23]} Qb6 {[%clk 00:29:52]} {[%emt 00:00:14]} 17. Bxa5 {[%clk
00:31:05]} {[%emt 00:00:10]} Qxa5 {[%clk 00:30:15]} {[%emt 00:00:07]} 18. Ne5
{[%clk 00:31:29]} {[%emt 00:00:06]} Bd7 {[%clk 00:25:03]} {[%emt 00:05:43]} 19.
Nc5 {[%clk 00:28:09]} {[%emt 00:03:49]} Bxc5 {[%clk 00:19:18]} {[%emt
00:06:16]} 20. Rxc5 {[%clk 00:27:48]} {[%emt 00:00:50]} Qb6 {[%clk 00:18:02]}
{[%emt 00:01:47]} 21. Bxd5 {[%clk 00:16:40]} {[%emt 00:11:37]} exd5 {[%clk
00:18:20]} {[%emt 00:00:12]} 22. Qf3 {[%clk 00:12:17]} {[%emt 00:04:53]} Be6
{[%clk 00:17:31]} {[%emt 00:01:19]} 23. b3 {[%clk 00:12:06]} {[%emt 00:00:41]}
Rac8 {[%clk 00:12:49]} {[%emt 00:05:13]} 24. Nd3 {[%clk 00:08:38]} {[%emt
00:03:58]} Rxc5 {[%clk 00:07:22]} {[%emt 00:05:57]} 25. Nxc5 {[%clk 00:09:06]}
{[%emt 00:00:01]} Rc8 {[%clk 00:06:53]} {[%emt 00:00:59]} 26. h3 {[%clk
00:06:01]} {[%emt 00:03:35]} Qb4 {[%clk 00:06:05]} {[%emt 00:01:19]} 27. Qd1
{[%clk 00:06:13]} {[%emt 00:00:17]} Bf5 {[%clk 00:01:33]} {[%emt 00:05:02]} 28.
Re5 {[%clk 00:05:12]} {[%emt 00:01:31]} Bc2 {[%clk 00:00:36]} {[%emt 00:01:28]}
29. Qg4 {[%clk 00:04:59]} {[%emt 00:00:43]} Rd8 {[%clk 00:00:43]} {[%emt
00:00:23]} 30. Qh4 {[%clk 00:02:46]} {[%emt 00:02:43]} Rd6 {[%clk 00:00:35]}
{[%emt 00:00:38]} 31. Re2 {[%clk 00:02:42]} {[%emt 00:00:34]} Bg6 {[%clk
00:00:36]} {[%emt 00:00:29]} 32. Qf4 {[%clk 00:02:28]} {[%emt 00:00:44]} Rd8
{[%clk 00:00:41]} {[%emt 00:00:24]} 33. Qc7 {[%clk 00:01:45]} {[%emt 00:01:13]}
Rf8 {[%clk 00:01:10]} {[%emt 00:00:01]} 34. Qe5 {[%clk 00:01:32]} {[%emt
00:00:44]} Qb5 {[%clk 00:00:50]} {[%emt 00:00:49]} 35. Re3 {[%clk 00:01:31]}
{[%emt 00:00:31]} b6 {[%clk 00:00:43]} {[%emt 00:00:38]} 36. Na4 {[%clk
00:01:59]} {[%emt 00:00:02]} Rc8 {[%clk 00:00:56]} {[%emt 00:00:16]} 37. Nc3
{[%clk 00:01:57]} {[%emt 00:00:32]} Qa5 {[%clk 00:00:40]} {[%emt 00:00:46]} 38.
Nxd5 {[%clk 00:02:12]} {[%emt 00:00:16]} Kh7 {[%clk 00:00:42]} {[%emt
00:00:28]} 39. Ne7 {[%clk 00:01:47]} {[%emt 00:00:55]} Rc1+ {[%clk 00:00:45]}
{[%emt 00:00:27]} 40. Kh2 {[%clk 00:02:15]} {[%emt 00:00:01]} Qxe5+ {[%clk
00:00:43]} {[%emt 00:00:32]} 41. Rxe5 {[%clk 00:01:41]} {[%emt 00:01:05]} Bb1
{[%clk 00:12:27]} {[%emt 00:04:15]} 42. Re2 {[%clk 00:14:25]} {[%emt 00:03:45]}
Rd1 {[%clk 00:12:01]} {[%emt 00:00:57]} 43. Nd5 {[%clk 00:13:45]} {[%emt
00:01:11]} Rxd4 {[%clk 00:08:31]} {[%emt 00:04:00]} 44. Nxb6 {[%clk 00:13:59]}
{[%emt 00:00:16]} Kg6 {[%clk 00:06:33]} {[%emt 00:02:28]} 45. Rb2 {[%clk
00:13:23]} {[%emt 00:01:06]} Bf5 {[%clk 00:06:29]} {[%emt 00:00:34]} 46. b4
{[%clk 00:12:10]} {[%emt 00:01:42]} Be6 {[%clk 00:04:18]} {[%emt 00:02:41]} 47.
a4 {[%clk 00:10:29]} {[%emt 00:02:12]} Rd6 {[%clk 00:02:37]} {[%emt 00:02:11]}
48. Na8 {[%clk 00:06:58]} {[%emt 00:04:01]} Rc6 {[%clk 00:01:28]} {[%emt
00:01:38]} 49. b5 {[%clk 00:05:29]} {[%emt 00:01:59]} axb5 {[%clk 00:01:58]}
{[%emt 00:00:02]} 50. Rxb5 {[%clk 00:03:50]} {[%emt 00:02:08]} Rc2 {[%clk
00:01:54]} {[%emt 00:00:34]} 51. Kg3 {[%clk 00:03:10]} {[%emt 00:01:10]} Ra2
{[%clk 00:01:15]} {[%emt 00:01:08]} 52. a5 {[%clk 00:03:27]} {[%emt 00:00:14]}
Kf6 {[%clk 00:01:13]} {[%emt 00:00:32]} 53. Nc7 {[%clk 00:03:28]} {[%emt
00:00:30]} Ke7 {[%clk 00:00:58]} {[%emt 00:00:44]} 54. Nxe6 {[%clk 00:02:56]}
{[%emt 00:01:02]} Kxe6 {[%clk 00:00:44]} {[%emt 00:00:44]} 55. Rb6+ {[%clk
00:03:21]} {[%emt 00:00:06]} Kf5 {[%clk 00:00:39]} {[%emt 00:00:34]} 56. Ra6
{[%clk 00:03:15]} {[%emt 00:00:35]} Ra3+ {[%clk 00:01:03]} {[%emt 00:00:07]} 57.
f3 {[%clk 00:03:36]} {[%emt 00:00:09]} f6 {[%clk 00:00:57]} {[%emt 00:00:36]}
58. Ra8 {[%clk 00:03:06]} {[%emt 00:01:00]} Ra4 {[%clk 00:00:54]} {[%emt
00:00:33]} 59. a6 {[%clk 00:03:14]} {[%emt 00:00:22]} Kg6 {[%clk 00:01:05]}
{[%emt 00:00:19]} 60. h4 {[%clk 00:02:14]} {[%emt 00:01:29]} Ra5 {[%clk
00:01:07]} {[%emt 00:00:29]} 61. Kh3 {[%clk 00:01:37]} {[%emt 00:01:07]} Ra3
{[%clk 00:01:28]} {[%emt 00:00:10]} 62. Kg3 {[%clk 00:01:12]} {[%emt 00:00:54]}
Ra5 {[%clk 00:01:47]} {[%emt 00:00:11]} 63. Kh2 {[%clk 00:00:59]} {[%emt
00:00:42]} Ra2 {[%clk 00:00:51]} {[%emt 00:01:27]} 64. a7 {[%clk 00:00:49]}
{[%emt 00:00:40]} h5 {[%clk 00:00:38]} {[%emt 00:00:43]} 65. Kg3 {[%clk
00:00:59]} {[%emt 00:00:20]} Ra4 {[%clk 00:00:47]} {[%emt 00:00:21]} 66. Kf2
{[%clk 00:01:17]} {[%emt 00:00:12]} Ra2+ {[%clk 00:00:46]} {[%emt 00:00:31]} 67.
Ke3 {[%clk 00:01:33]} {[%emt 00:00:13]} Ra3+ {[%clk 00:01:14]} {[%emt
00:00:03]} 68. Kd2 {[%clk 00:01:13]} {[%emt 00:00:49]} Kf5 {[%clk 00:01:00]}
{[%emt 00:00:44]} 69. Rh8 {[%clk 00:00:40]} {[%emt 00:01:03]} Rxa7 {[%clk
00:01:20]} {[%emt 00:00:10]} 70. g3 {[%clk 00:00:44]} {[%emt 00:00:27]} Ke5
{[%clk 00:00:52]} {[%emt 00:00:20]} 1/2-1/2

[Event "Polofinale MCR junioru 2023"]
[Site "Czech Republic"]
[Date "2023.11.14"]
[Round "4.3"]
[White "Skypala, Ondrej"]
[Black "Soucek, Petr"]
[Result "1-0"]
[TimeControl "90 min per 40 moves + 15 min + 30 sec / move from move 1"]
[WhiteFideId "366285"]
[BlackFideId "23715170"]
[WhiteElo "2159"]
[BlackElo "2227"]

1. c4 {[%clk 01:22:43]} {[%emt 00:08:06]} e6 {[%clk 01:30:43]} {[%emt
00:00:26]} 2. g3 {[%clk 01:23:06]} {[%emt 00:00:08]} d5 {[%clk 01:31:03]}
{[%emt 00:00:10]} 3. Bg2 {[%clk 01:23:33]} {[%emt 00:00:04]} Nf6 {[%clk
01:27:37]} {[%emt 00:03:56]} 4. Nf3 {[%clk 01:23:57]} {[%emt 00:00:05]} d4
{[%clk 01:27:56]} {[%emt 00:00:11]} 5. d3 {[%clk 01:23:47]} {[%emt 00:00:40]}
c5 {[%clk 01:28:10]} {[%emt 00:00:16]} 6. O-O {[%clk 01:23:51]} {[%emt
00:00:26]} Nc6 {[%clk 01:28:31]} {[%emt 00:00:10]} 7. e3 {[%clk 01:18:58]}
{[%emt 00:05:22]} Bd6 {[%clk 01:28:30]} {[%emt 00:00:31]} 8. exd4 {[%clk
01:17:21]} {[%emt 00:02:08]} cxd4 {[%clk 01:28:36]} {[%emt 00:00:23]} 9. a3
{[%clk 01:17:09]} {[%emt 00:00:42]} a5 {[%clk 01:28:27]} {[%emt 00:00:39]} 10.
Nbd2 {[%clk 01:17:32]} {[%emt 00:00:06]} h6 {[%clk 01:26:55]} {[%emt 00:02:03]}
11. Qc2 {[%clk 01:15:26]} {[%emt 00:02:36]} O-O {[%clk 01:23:01]} {[%emt
00:04:24]} 12. Rb1 {[%clk 01:07:30]} {[%emt 00:08:27]} a4 {[%clk 01:21:43]}
{[%emt 00:01:48]} 13. c5 {[%clk 00:55:13]} {[%emt 00:12:47]} Bc7 {[%clk
01:18:45]} {[%emt 00:03:28]} 14. b4 {[%clk 00:52:59]} {[%emt 00:02:43]} axb3
{[%clk 01:19:00]} {[%emt 00:00:15]} 15. Rxb3 {[%clk 00:53:14]} {[%emt
00:00:15]} e5 {[%clk 01:17:22]} {[%emt 00:02:09]} 16. Nc4 {[%clk 00:52:56]}
{[%emt 00:00:47]} Ra7 {[%clk 01:15:09]} {[%emt 00:02:43]} 17. Re1 {[%clk
00:49:50]} {[%emt 00:03:37]} Re8 {[%clk 01:06:48]} {[%emt 00:08:51]} 18. Rb5
{[%clk 00:42:58]} {[%emt 00:07:22]} e4 {[%clk 00:56:53]} {[%emt 00:10:25]} 19.
dxe4 {[%clk 00:42:18]} {[%emt 00:01:09]} d3 {[%clk 00:56:37]} {[%emt 00:00:46]}
20. Qb2 {[%clk 00:42:00]} {[%emt 00:00:48]} Nxe4 {[%clk 00:48:55]} {[%emt
00:08:12]} 21. Be3 {[%clk 00:31:29]} {[%emt 00:11:00]} Be6 {[%clk 00:47:08]}
{[%emt 00:02:18]} 22. Nd6 {[%clk 00:29:15]} {[%emt 00:02:44]} Bxd6 {[%clk
00:45:54]} {[%emt 00:01:44]} 23. cxd6 {[%clk 00:29:37]} {[%emt 00:00:08]} Ra6
{[%clk 00:43:49]} {[%emt 00:02:35]} 24. Bxh6 {[%clk 00:24:28]} {[%emt
00:05:38]} gxh6 {[%clk 00:41:03]} {[%emt 00:03:17]} 25. Rxe4 {[%clk 00:22:27]}
{[%emt 00:02:31]} Qxd6 {[%clk 00:41:01]} {[%emt 00:00:33]} 26. a4 {[%clk
00:19:30]} {[%emt 00:03:27]} Rea8 {[%clk 00:30:54]} {[%emt 00:10:37]} 27. Rh4
{[%clk 00:16:16]} {[%emt 00:03:43]} d2 {[%clk 00:22:57]} {[%emt 00:08:28]} 28.
Nxd2 {[%clk 00:15:45]} {[%emt 00:01:00]} Rxa4 {[%clk 00:23:03]} {[%emt
00:00:25]} 29. Rxh6 {[%clk 00:13:39]} {[%emt 00:02:36]} Qd4 {[%clk 00:22:34]}
{[%emt 00:00:58]} 30. Qxd4 {[%clk 00:12:23]} {[%emt 00:01:46]} Nxd4 {[%clk
00:22:49]} {[%emt 00:00:15]} 31. Rg5+ {[%clk 00:12:47]} {[%emt 00:00:06]} Kf8
{[%clk 00:23:16]} {[%emt 00:00:03]} 32. Bxb7 {[%clk 00:13:09]} {[%emt
00:00:08]} R8a7 {[%clk 00:22:45]} {[%emt 00:01:02]} 33. Bd5 {[%clk 00:13:04]}
{[%emt 00:00:34]} Rd7 {[%clk 00:21:33]} {[%emt 00:01:42]} 34. Rhh5 {[%clk
00:13:06]} {[%emt 00:00:28]} Ra5 {[%clk 00:18:25]} {[%emt 00:03:38]} 35. Rh8+
{[%clk 00:09:26]} {[%emt 00:04:10]} Ke7 {[%clk 00:18:50]} {[%emt 00:00:05]} 36.
Bxe6 {[%clk 00:09:44]} {[%emt 00:00:12]} Ra1+ {[%clk 00:19:09]} {[%emt
00:00:12]} 37. Kg2 {[%clk 00:10:10]} {[%emt 00:00:03]} Nxe6 {[%clk 00:19:29]}
{[%emt 00:00:09]} 38. Nb3 {[%clk 00:10:31]} {[%emt 00:00:10]} Rb1 {[%clk
00:14:00]} {[%emt 00:05:58]} 39. Rb5 {[%clk 00:10:54]} {[%emt 00:00:07]} Rdd1
{[%clk 00:14:10]} {[%emt 00:00:21]} 40. Rhh5 {[%clk 00:08:37]} {[%emt
00:02:47]} Rg1+ {[%clk 00:14:12]} {[%emt 00:00:28]} 41. Kh3 {[%clk 00:08:39]}
{[%emt 00:00:27]} Rb2 {[%clk 00:14:07]} {[%emt 00:00:37]} 42. Rb7+ {[%clk
00:06:49]} {[%emt 00:02:20]} Kf6 {[%clk 00:11:58]} {[%emt 00:02:38]} 43. Nc5
{[%clk 00:06:49]} {[%emt 00:00:30]} Rxf2 {[%clk 00:03:21]} {[%emt 00:09:08]} 44.
Rh6+ {[%clk 00:05:44]} {[%emt 00:01:35]} Kg5 {[%clk 00:03:31]} {[%emt
00:00:19]} 45. Rxe6 {[%clk 00:06:08]} {[%emt 00:00:06]} Rc2 {[%clk 00:02:02]}
{[%emt 00:01:59]} 46. Rc6 {[%clk 00:03:41]} {[%emt 00:02:57]} Re2 {[%clk
00:02:01]} {[%emt 00:00:31]} 47. Rb5 {[%clk 00:03:03]} {[%emt 00:01:08]} f5
{[%clk 00:01:51]} {[%emt 00:00:41]} 48. Ne6+ {[%clk 00:03:23]} {[%emt
00:00:10]} Kf6 {[%clk 00:02:17]} {[%emt 00:00:03]} 49. Nf4+ {[%clk 00:03:49]}
{[%emt 00:00:04]} 1-0

[Event "Polofinale MCR junioru 2023"]
[Site "Czech Republic"]
[Date "2023.11.14"]
[Round "4.4"]
[White "Jirasko, Miroslav"]
[Black "Bokhnak, Timofey"]
[Result "0-1"]
[TimeControl "90 min per 40 moves + 15 min + 30 sec / move from move 1"]
[WhiteFideId "23729414"]
[BlackFideId "14172976"]
[WhiteElo "2084"]
[BlackElo "2210"]

1. c4 {[%clk 01:24:10]} {[%emt 00:06:43]} e6 {[%clk 01:29:38]} {[%emt
00:01:29]} 2. Nf3 {[%clk 01:24:19]} {[%emt 00:00:21]} d5 {[%clk 01:29:57]}
{[%emt 00:00:10]} 3. d4 {[%clk 01:24:15]} {[%emt 00:00:35]} Nf6 {[%clk
01:30:11]} {[%emt 00:00:16]} 4. g3 {[%clk 01:24:38]} {[%emt 00:00:07]} Be7
{[%clk 01:29:15]} {[%emt 00:01:25]} 5. Bg2 {[%clk 01:24:59]} {[%emt 00:00:09]}
O-O {[%clk 01:29:35]} {[%emt 00:00:11]} 6. O-O {[%clk 01:25:24]} {[%emt
00:00:05]} c6 {[%clk 01:27:06]} {[%emt 00:02:59]} 7. Nc3 {[%clk 01:23:36]}
{[%emt 00:02:19]} Nbd7 {[%clk 01:24:35]} {[%emt 00:03:01]} 8. Qd3 {[%clk
01:23:20]} {[%emt 00:00:45]} Re8 {[%clk 01:23:44]} {[%emt 00:01:22]} 9. e4
{[%clk 01:13:59]} {[%emt 00:09:50]} dxe4 {[%clk 01:12:51]} {[%emt 00:11:23]} 10.
Nxe4 {[%clk 01:10:51]} {[%emt 00:03:38]} c5 {[%clk 01:10:50]} {[%emt 00:02:32]}
11. Rd1 {[%clk 01:00:21]} {[%emt 00:10:59]} cxd4 {[%clk 01:00:53]} {[%emt
00:10:28]} 12. Nxd4 {[%clk 00:55:24]} {[%emt 00:05:26]} Ne5 {[%clk 00:52:04]}
{[%emt 00:09:19]} 13. Qe2 {[%clk 00:55:42]} {[%emt 00:00:12]} Qb6 {[%clk
00:46:09]} {[%emt 00:06:25]} 14. Bf4 {[%clk 00:37:15]} {[%emt 00:18:57]} Ned7
{[%clk 00:41:29]} {[%emt 00:05:10]} 15. Nb5 {[%clk 00:31:27]} {[%emt 00:06:19]}
Nxe4 {[%clk 00:37:06]} {[%emt 00:04:52]} 16. Bxe4 {[%clk 00:31:52]} {[%emt
00:00:05]} e5 {[%clk 00:34:06]} {[%emt 00:03:30]} 17. Be3 {[%clk 00:32:02]}
{[%emt 00:00:19]} Bc5 {[%clk 00:31:17]} {[%emt 00:03:20]} 18. Nd6 {[%clk
00:19:07]} {[%emt 00:13:25]} Re7 {[%clk 00:20:52]} {[%emt 00:10:56]} 19. Bf5
{[%clk 00:17:30]} {[%emt 00:02:07]} Bxe3 {[%clk 00:18:59]} {[%emt 00:02:23]} 20.
fxe3 {[%clk 00:15:30]} {[%emt 00:02:29]} Qc7 {[%clk 00:17:44]} {[%emt
00:01:45]} 21. c5 {[%clk 00:09:20]} {[%emt 00:06:40]} g6 {[%clk 00:17:22]}
{[%emt 00:00:52]} 22. Bh3 {[%clk 00:09:32]} {[%emt 00:00:18]} f5 {[%clk
00:16:05]} {[%emt 00:01:47]} 23. Qc4+ {[%clk 00:09:25]} {[%emt 00:00:37]} Kf8
{[%clk 00:14:53]} {[%emt 00:01:42]} 24. Rac1 {[%clk 00:07:45]} {[%emt
00:02:09]} Nf6 {[%clk 00:15:04]} {[%emt 00:00:19]} 25. Nb5 {[%clk 00:06:07]}
{[%emt 00:02:09]} Qa5 {[%clk 00:13:34]} {[%emt 00:02:01]} 26. b4 {[%clk
00:04:20]} {[%emt 00:02:16]} Qa4 {[%clk 00:14:03]} {[%emt 00:00:01]} 27. Rd8+
{[%clk 00:04:26]} {[%emt 00:00:24]} Kg7 {[%clk 00:14:22]} {[%emt 00:00:12]} 28.
Rd6 {[%clk 00:03:21]} {[%emt 00:01:35]} Bd7 {[%clk 00:11:01]} {[%emt 00:03:51]}
29. Nc3 {[%clk 00:03:43]} {[%emt 00:00:08]} Qa3 {[%clk 00:11:30]} {[%emt
00:00:01]} 30. Rcd1 {[%clk 00:03:59]} {[%emt 00:00:13]} Bc6 {[%clk 00:11:15]}
{[%emt 00:00:44]} 31. b5 {[%clk 00:03:30]} {[%emt 00:01:00]} Bf3 {[%clk
00:08:27]} {[%emt 00:03:19]} 32. Rf1 {[%clk 00:03:12]} {[%emt 00:00:48]} Rc8
{[%clk 00:06:50]} {[%emt 00:02:06]} 33. Rxf3 {[%clk 00:02:28]} {[%emt
00:01:14]} Rxc5 {[%clk 00:07:19]} {[%emt 00:00:01]} 34. Qh4 {[%clk 00:02:52]}
{[%emt 00:00:06]} Rf7 {[%clk 00:07:08]} {[%emt 00:00:41]} 35. Ne2 {[%clk
00:02:57]} {[%emt 00:00:25]} Rc2 {[%clk 00:07:04]} {[%emt 00:00:34]} 36. Rxf6
{[%clk 00:01:44]} {[%emt 00:01:44]} Rxf6 {[%clk 00:07:23]} {[%emt 00:00:11]} 37.
Bf1 {[%clk 00:01:54]} {[%emt 00:00:19]} e4 {[%clk 00:07:15]} {[%emt 00:00:38]}
38. Rf2 {[%clk 00:02:14]} {[%emt 00:00:09]} Qxe3 {[%clk 00:06:38]} {[%emt
00:01:08]} 39. Qf4 {[%clk 00:02:41]} {[%emt 00:00:04]} Qc5 {[%clk 00:05:59]}
{[%emt 00:01:09]} 40. a4 {[%clk 00:02:25]} {[%emt 00:00:46]} Rd6 {[%clk
00:04:44]} {[%emt 00:01:42]} 41. g4 {[%clk 00:01:44]} {[%emt 00:01:13]} Rdd2
{[%clk 00:03:41]} {[%emt 00:01:34]} 42. gxf5 {[%clk 00:01:17]} {[%emt
00:00:57]} Rxe2 {[%clk 00:03:35]} {[%emt 00:00:36]} 43. Bxe2 {[%clk 00:01:42]}
{[%emt 00:00:05]} Rxe2 {[%clk 00:04:00]} {[%emt 00:00:05]} 0-1

[Event "Polofinale MCR junioru 2023"]
[Site "Czech Republic"]
[Date "2023.11.14"]
[Round "4.5"]
[White "Fizer, Marek"]
[Black "Hurtik, Matej"]
[Result "0-1"]
[TimeControl "90 min per 40 moves + 15 min + 30 sec / move from move 1"]
[WhiteFideId "391980"]
[BlackFideId "397997"]
[WhiteElo "2162"]
[BlackElo "2131"]

1. e4 {[%clk 01:30:55]} {[%emt 00:00:03]} d5 {[%clk 01:24:03]} {[%emt
00:06:57]} 2. exd5 {[%clk 01:31:16]} {[%emt 00:00:09]} Nf6 {[%clk 01:24:05]}
{[%emt 00:00:28]} 3. d4 {[%clk 01:31:10]} {[%emt 00:00:36]} Nxd5 {[%clk
01:23:47]} {[%emt 00:00:50]} 4. c4 {[%clk 01:31:17]} {[%emt 00:00:22]} Nb6
{[%clk 01:24:07]} {[%emt 00:00:10]} 5. Nc3 {[%clk 01:31:14]} {[%emt 00:00:32]}
g6 {[%clk 01:23:26]} {[%emt 00:01:11]} 6. Be3 {[%clk 01:30:43]} {[%emt
00:01:01]} Bg7 {[%clk 01:22:37]} {[%emt 00:01:21]} 7. h3 {[%clk 01:30:35]}
{[%emt 00:00:36]} O-O {[%clk 01:22:38]} {[%emt 00:00:28]} 8. Nf3 {[%clk
01:30:02]} {[%emt 00:01:04]} Nc6 {[%clk 01:23:00]} {[%emt 00:00:10]} 9. Be2
{[%clk 01:29:51]} {[%emt 00:00:39]} e5 {[%clk 01:19:23]} {[%emt 00:04:07]} 10.
d5 {[%clk 01:18:50]} {[%emt 00:11:31]} Ne7 {[%clk 01:18:00]} {[%emt 00:01:54]}
11. O-O {[%clk 01:17:00]} {[%emt 00:02:19]} f5 {[%clk 01:16:21]} {[%emt
00:02:10]} 12. Bc5 {[%clk 01:06:26]} {[%emt 00:11:03]} Re8 {[%clk 01:13:33]}
{[%emt 00:03:17]} 13. d6 {[%clk 01:03:31]} {[%emt 00:03:27]} cxd6 {[%clk
01:09:46]} {[%emt 00:04:16]} 14. Bxd6 {[%clk 01:02:54]} {[%emt 00:01:07]} e4
{[%clk 00:59:59]} {[%emt 00:10:17]} 15. Ne5 {[%clk 00:52:52]} {[%emt 00:10:33]}
Ned5 {[%clk 00:44:43]} {[%emt 00:15:45]} 16. cxd5 {[%clk 00:42:33]} {[%emt
00:10:49]} Qxd6 {[%clk 00:45:05]} {[%emt 00:00:09]} 17. Nc4 {[%clk 00:39:43]}
{[%emt 00:03:20]} Nxc4 {[%clk 00:45:22]} {[%emt 00:00:12]} 18. Nb5 {[%clk
00:37:57]} {[%emt 00:02:17]} Qc5 {[%clk 00:23:00]} {[%emt 00:22:52]} 19. Bxc4
{[%clk 00:37:08]} {[%emt 00:01:19]} a6 {[%clk 00:22:06]} {[%emt 00:01:23]} 20.
Na3 {[%clk 00:29:38]} {[%emt 00:08:00]} Bxb2 {[%clk 00:15:33]} {[%emt
00:07:04]} 21. d6+ {[%clk 00:29:39]} {[%emt 00:00:28]} Kh8 {[%clk 00:15:41]}
{[%emt 00:00:22]} 22. d7 {[%clk 00:26:15]} {[%emt 00:03:55]} Bxd7 {[%clk
00:16:08]} {[%emt 00:00:03]} 23. Qxd7 {[%clk 00:26:05]} {[%emt 00:00:39]} Rad8
{[%clk 00:13:07]} {[%emt 00:03:31]} 24. Qxb7 {[%clk 00:15:45]} {[%emt
00:10:50]} Bxa1 {[%clk 00:13:30]} {[%emt 00:00:08]} 25. Rxa1 {[%clk 00:16:03]}
{[%emt 00:00:11]} Qxa3 {[%clk 00:13:58]} {[%emt 00:00:03]} 26. Bxa6 {[%clk
00:16:03]} {[%emt 00:00:30]} Rd2 {[%clk 00:09:21]} {[%emt 00:05:06]} 27. Qc6
{[%clk 00:15:13]} {[%emt 00:01:21]} Rf8 {[%clk 00:08:23]} {[%emt 00:01:28]} 28.
Rb1 {[%clk 00:12:36]} {[%emt 00:03:07]} Rd6 {[%clk 00:07:27]} {[%emt 00:01:25]}
29. Qc7 {[%clk 00:12:09]} {[%emt 00:00:57]} Qxa6 {[%clk 00:07:42]} {[%emt
00:00:15]} 30. Rb7 {[%clk 00:11:43]} {[%emt 00:00:57]} Rd1+ {[%clk 00:08:05]}
{[%emt 00:00:06]} 31. Kh2 {[%clk 00:12:09]} {[%emt 00:00:04]} Qd6+ {[%clk
00:08:26]} {[%emt 00:00:09]} 0-1